bitfinex/quotes_ETHUSD_20250107
["timestamp","ask_amount","ask_price","bid_price","bid_amount"]
[1736262764226,1.6023,3541.0,3538.7,0.02624604]
[1736262764375,1.6023,3541.0,3540.3,0.0075]
[1736262764575,0.03529977,3541.5,3539.9,0.0075]
[1736262764810,0.03529815,3541.7,3539.9,0.03372348]
[1736262765078,0.03529815,3541.7,3538.7,2.82588]
[1736262765079,2.82385,3541.3,3539.5,0.02622981]
[1736262765284,0.06356044,3541.6,3539.6,3.0]
[1736262765534,0.0352986,3541.7,3540.7,2.82425]
[1736262765828,0.02825793,3541.6,3540.9,0.0075]
[1736262766046,1.5914,3541.8,3540.1,0.01971032]
[1736262766178,0.03529511,3541.7,3540.1,0.1151542]
[1736262766376,1.6337,3542.6,3540.4,4.5136]
[1736262766577,0.01,3543.4,3542.1,0.0075]
[1736262766578,1.6789905,3543.4,3542.1,0.0075]
[1736262766893,0.02825793,3543.3,3542.5,2.82279]
[1736262767192,0.02825793,3543.3,3541.1,2.0]
[1736262767193,0.02825793,3543.3,3542.6,0.01968329]
[1736262767391,0.01,3543.4,3541.5,2.0]
[1736262767608,0.01,3543.4,3541.4,2.82371]
[1736262767609,1.53,3543.3,3541.4,2.82371]
[1736262767919,1.53,3543.3,3541.5,0.282371]
[1736262767920,0.03199931,3543.2,3541.5,0.282371]
[1736262768126,0.03199931,3543.2,3541.6,0.01969735]
[1736262768327,0.03199931,3543.2,3542.3,0.0075]
[1736262768535,0.03527845,3543.2,3542.3,0.0075]
[1736262768740,0.03251018,3543.1,3541.3,0.11433071]
[1736262769040,0.03528638,3543.0,3540.7,1.537296]
[1736262769237,2.89016188,3542.9,3540.8,0.79723385]
[1736262769425,2.82281,3542.6,3541.1,2.82397]
[1736262769601,0.06759188,3542.9,3540.8,0.01970896]
[1736262769602,2.82266,3542.8,3541.2,0.0196962]
[1736262769795,0.03229986,3542.7,3540.9,3.0]
[1736262769995,0.03528706,3543.2,3541.1,0.0075]
[1736262770199,0.58229986,3543.1,3541.1,0.290656]
[1736262770504,0.03529268,3543.0,3540.3,0.11434486]
[1736262770706,2.82335,3541.9,3540.4,0.01971126]
[1736262770907,0.55,3542.8,3540.3,0.11434486]
[1736262771109,1.6111,3541.7,3540.3,0.11434486]
[1736262771309,2.82391,3541.2,3540.3,0.11434486]
[1736262771536,0.55,3541.3,3540.4,0.0075]
[1736262771834,1.6111,3541.7,3540.4,0.02722395]
[1736262771835,0.03229986,3541.2,3540.4,0.02722395]
[1736262772041,1.6111,3541.7,3540.8,0.0075]
[1736262772216,0.03229986,3541.6,3541.1,0.0075]
[1736262772397,1.5774,3542.5,3541.2,2.817356]
[1736262772738,0.03229986,3542.4,3541.8,2.82336]
[1736262773037,0.03528049,3543.3,3541.9,0.0075]
[1736262773208,2.82305,3542.3,3541.9,0.0075]
[1736262773544,4.3857,3543.4,3540.9,1.863379]
[1736262773545,0.03529046,3542.2,3540.9,1.863379]
[1736262773736,1.5535,3542.1,3540.9,0.283179]
[1736262773951,2.82363,3541.6,3540.1,0.1151542]
[1736262774097,0.55,3541.9,3540.3,0.0075]
[1736262774295,2.82358,3541.6,3540.3,0.0197154]
[1736262774600,0.55,3541.9,3540.1,0.1151542]
[1736262774601,2.82467,3540.3,3540.1,0.1151542]
[1736262774797,0.55,3539.7,3538.5,1.5802]
[1736262774999,2.82417,3540.9,3538.0,1.130272]
[1736262775000,2.82525,3539.5,3538.0,1.130272]
[1736262775198,2.82574,3538.9,3538.0,1.130272]
[1736262775401,1.5535,3540.1,3537.6,1.5802]
[1736262775402,0.03532416,3540.0,3537.6,1.5802]
[1736262775711,0.55,3539.8,3537.6,1.5802]
[1736262775911,0.55,3538.3,3536.6,1.130686]
[1736262776157,0.03229986,3539.9,3536.7,0.66299359]
[1736262776158,0.03532758,3538.8,3536.7,0.66299359]
[1736262776346,0.03229986,3538.2,3537.4,3.0]
[1736262776545,0.55,3539.1,3537.8,2.82659]
[1736262776844,0.03229986,3539.0,3536.7,3.49043359]
[1736262777094,0.55,3538.8,3536.8,1.01204025]
[1736262777297,0.03229986,3539.0,3536.9,2.0197773]
[1736262777451,2.82533,3539.4,3537.5,2.82681]
[1736262777654,0.06762486,3539.3,3537.1,2.0]
[1736262777879,4.4050848,3540.1,3537.1,2.0]
[1736262777880,0.03532127,3540.0,3537.1,2.0]
[1736262778052,2.82574,3538.9,3537.4,2.82691]
[1736262778271,0.03532371,3538.8,3537.2,0.482723]
[1736262778441,2.82501,3539.8,3536.4,1.13076]
[1736262778442,1.5513,3539.2,3536.4,1.13076]
[1736262778644,0.31763544,3539.1,3536.3,0.04205645]
[1736262778845,2.82676,3537.7,3536.3,0.04205645]
[1736262779110,0.03039403,3537.6,3536.3,0.04205645]
[1736262779490,2.82671,3537.7,3536.4,0.01979429]
[1736262779657,2.85720403,3537.6,3536.3,0.04205645]
[1736262779873,0.03039403,3537.6,3536.7,2.82746]
[1736262780217,2.82559,3539.1,3536.8,0.3025322]
[1736262780218,2.82557,3539.1,3536.8,0.3025322]
[1736262780421,0.58039403,3537.5,3536.3,0.04205645]
[1736262780577,0.03534083,3537.4,3536.3,0.04205645]
[1736262780766,0.03534083,3537.4,3536.4,0.01980975]
[1736262780767,0.03039403,3537.4,3536.4,0.01980975]
[1736262781121,2.8257,3539.0,3537.7,2.82665]
[1736262781260,1.5634,3539.9,3537.8,0.0197651]
[1736262781456,0.06171158,3539.8,3537.3,2.82701]
[1736262781685,2.82509,3539.7,3537.4,0.01976605]
[1736262781919,1.5634,3539.9,3536.9,1.5087]
[1736262781920,2.82608,3538.5,3537.0,2.82723]
[1736262782088,0.06171728,3539.6,3537.0,2.82723]
[1736262782089,0.03533098,3538.9,3537.1,0.01978514]
[1736262782399,0.03533182,3539.6,3537.2,5.49924988]
[1736262782571,0.03531807,3539.8,3537.0,2.15087]
[1736262782769,2.85172602,3539.5,3537.4,2.82692]
[1736262782973,0.03532728,3539.4,3537.3,2.827]
[1736262783158,2.82541,3539.3,3536.9,1.5087]
[1736262783360,0.0617233,3539.4,3536.9,1.5087]
[1736262783361,0.55,3539.0,3537.0,0.01978461]
[1736262783585,0.03533092,3539.0,3536.9,1.5087]
[1736262783788,2.82654,3537.9,3536.6,2.82754]
[1736262783987,2.82637,3538.2,3536.7,0.01979171]
[1736262784192,2.82615,3538.4,3536.7,0.01979171]
[1736262784391,0.02639602,3538.1,3537.0,2.0]
[1736262784706,3.41643603,3540.1,3537.8,5.49924988]
[1736262784707,0.03532088,3539.7,3537.8,5.49924988]
[1736262784873,0.0267348,3540.1,3537.7,1.5534]
[1736262784874,0.0267348,3540.1,3538.5,2.82605]
[1736262785076,0.0267348,3540.1,3537.9,6.02501336]
[1736262785077,0.0267348,3540.1,3539.3,5.49924988]
[1736262785283,0.0267348,3540.1,3540.0,2.82485]
[1736262785479,0.0267348,3540.1,3540.0,7.34646968]
[1736262785480,4.8e-06,3540.1,3540.0,7.34646968]
[1736262785679,0.03529665,3542.4,3541.5,2.82362]
[1736262786003,0.02639602,3542.3,3541.6,0.01970452]
[1736262786204,0.02639602,3542.3,3542.2,2.8231]
[1736262786509,0.01,3543.4,3541.8,0.01968152]
[1736262786701,0.01,3543.4,3542.2,35.0]
[1736262786907,2.82239,3543.1,3542.2,35.0]
[1736262787114,0.03528112,3543.0,3542.2,35.0]
[1736262787322,0.04528432,3543.4,3542.2,35.0]
[1736262787724,0.04528432,3543.4,3540.6,2.82438]
[1736262787725,0.55,3542.0,3540.6,2.82438]
[1736262787875,0.55,3542.0,3540.5,0.04200656]
[1736262787876,0.55,3541.7,3540.5,0.04200656]
[1736262788215,0.55,3541.5,3540.5,0.04200656]
[1736262788423,2.0501,3540.5,3538.1,2.0]
[1736262788580,3.0,3540.9,3536.8,1.13657493]
[1736262788581,1.5001,3538.5,3536.8,1.13657493]
[1736262788902,0.03063279,3538.4,3536.7,1.13657493]
[1736262789105,0.55,3538.2,3536.7,1.13657493]
[1736262789288,0.03063279,3538.4,3536.7,1.13657493]
[1736262789289,2.82606,3538.5,3536.8,35.30677585]
[1736262789473,1.5937,3539.3,3536.8,38.11437811]
[1736262789474,0.03533004,3539.2,3536.8,38.11437811]
[1736262789680,0.03533004,3539.2,3536.8,0.28697811]
[1736262789880,2.82607,3538.5,3536.8,0.28697811]
[1736262790079,0.06596839,3539.1,3536.8,0.30677249]
[1736262790283,2.82587,3538.8,3537.4,35.0]
[1736262790545,1.5226,3540.2,3538.2,2.0]
[1736262790674,2.82492,3540.0,3538.3,0.02824851]
[1736262790875,0.04618256,3540.1,3538.2,2.82627]
[1736262791145,2.825,3539.9,3538.3,35.0]
[1736262791318,2.82524,3539.6,3538.3,37.43787371]
[1736262791496,0.01554977,3540.1,3538.4,0.02825348]
[1736262791696,4.34736,3540.2,3538.8,2.82575]
[1736262791874,4.34736,3540.2,3538.1,5.0]
[1736262791875,0.03063279,3540.0,3538.1,5.0]
[1736262792079,2.8248,3540.1,3538.7,35.0]
[1736262792080,2.82535,3539.4,3538.7,35.0]
[1736262792280,2.82496,3539.9,3538.8,0.0282537]
[1736262792575,0.01554977,3539.8,3538.7,35.0]
[1736262792784,1.5226,3540.2,3538.8,0.02825493]
[1736262792996,0.03063279,3539.7,3538.7,35.0]
[1736262793200,2.84038977,3540.1,3538.7,35.0]
[1736262793412,2.82528,3539.5,3538.8,0.02825417]
[1736262793631,2.85549279,3540.0,3538.8,0.02825305]
[1736262793832,2.85549279,3540.0,3538.7,2.71757592]
[1736262793833,0.01554977,3539.9,3537.6,4.39706]
[1736262793994,0.02941355,3539.4,3537.7,35.02825707]
[1736262794189,2.8258,3538.9,3537.7,35.0]
[1736262794376,1.5222,3539.2,3537.7,35.0]
[1736262794582,5.66857463,3539.1,3536.1,1.5142]
[1736262794792,0.55,3537.4,3536.1,1.5142]
[1736262795000,0.01554977,3537.3,3535.1,1.73320614]
[1736262795221,3.57941355,3537.2,3535.4,35.0]
[1736262795395,0.01554977,3537.1,3535.4,35.0]
[1736262795591,2.82741,3536.8,3535.4,35.0]
[1736262795833,2.84304977,3536.7,3535.5,0.02827817]
[1736262796054,2.82764,3536.6,3535.4,2.71757592]
[1736262796193,2.82738,3536.9,3535.5,0.02827851]
[1736262796506,0.02737565,3536.8,3536.4,35.0]
[1736262796708,0.01554977,3537.0,3536.4,35.0]
[1736262797021,5.49924988,3537.3,3534.6,1.5517]
[1736262797225,0.02737565,3536.9,3534.7,0.15517]
[1736262797536,2.82831,3535.7,3534.3,2.8294]
[1736262797733,1.527,3536.5,3533.9,1.6422]
[1736262797734,0.01554977,3535.6,3533.9,1.6422]
[1736262797934,0.01554977,3535.9,3534.8,35.0]
[1736262798094,0.02737565,3535.5,3534.8,35.0]
[1736262798297,2.82856,3535.4,3534.8,35.0]
[1736262798500,0.01554977,3536.4,3534.8,35.0]
[1736262798714,0.55,3535.2,3534.8,35.0]
[1736262798908,0.01554977,3535.7,3534.8,35.0]
[1736262799152,0.25,3537.3,3534.7,2.82906]
[1736262799153,0.01554977,3536.4,3534.7,2.82906]
[1736262799449,2.82838,3535.6,3534.2,2.82945]
[1736262799655,0.55,3535.5,3535.2,35.0]
[1736262799854,2.82825,3535.8,3535.2,35.0]
[1736262800008,5.49924988,3537.3,3535.3,0.02828575]
[1736262800214,0.01554977,3536.4,3534.5,2.82925]
[1736262800457,2.82777,3536.4,3534.5,2.0]
[1736262800680,0.01554977,3536.9,3536.3,35.0]
[1736262800954,5.74924988,3538.5,3535.5,1.6454]
[1736262800955,0.01554977,3537.1,3535.5,1.6454]
[1736262801154,0.01554977,3538.1,3535.5,1.6454]
[1736262801459,0.01554977,3538.4,3538.0,35.0]
[1736262801627,2.82509,3539.7,3538.2,2.82629]
[1736262801826,0.01554977,3539.7,3538.3,2.85446002]
[1736262802139,1.0926613,3540.0,3538.3,0.02826002]
[1736262802356,1.0926613,3540.0,3539.7,35.0]
[1736262802559,1.0926613,3540.0,3539.8,0.02824718]
[1736262802772,1.0926613,3540.0,3539.4,1.5995]
[1736262802773,2.82401,3541.1,3539.4,1.5995]
[1736262803069,0.01554977,3541.2,3539.4,3.5995]
[1736262803229,0.01554977,3541.2,3539.9,35.0]
[1736262803640,8.97,3543.3,3540.0,0.02824769]
[1736262803641,2.83925977,3541.5,3540.0,0.02824769]
[1736262803840,0.01554977,3541.4,3539.9,35.0]
[1736262804039,2.82354,3541.7,3540.0,0.02824205]
[1736262804277,2.83895977,3541.9,3540.1,0.0075]
[1736262804444,2.82273,3542.7,3541.3,35.0]
[1736262804651,1.5656,3543.2,3541.4,0.02823395]
[1736262804876,2.8233,3542.0,3540.5,2.82443]
[1736262805029,2.82408,3541.0,3539.7,2.82505]
[1736262805370,0.55,3541.2,3539.8,35.0]
[1736262805556,1.5656,3541.5,3539.9,2.74582131]
[1736262805756,2.82409,3541.0,3540.0,0.0075]
[1736262805958,1.5656,3541.5,3540.0,0.03574452]
[1736262806335,2.82374,3541.4,3540.0,0.03574452]
[1736262806529,2.82416,3540.9,3539.5,4.33761]
[1736262806731,2.8239,3541.2,3539.5,35.0]
[1736262806959,2.82438,3540.6,3538.1,1.5441]
[1736262807158,1.5766,3540.7,3538.2,0.02825299]
[1736262807357,0.02810787,3540.5,3539.3,2.82538]
[1736262807559,0.02810787,3540.5,3538.7,2.82582]
[1736262807560,1.5766,3540.7,3539.4,0.0075]
[1736262807884,2.82445,3540.5,3538.3,35.0]
[1736262808040,1.5766,3540.7,3538.4,2.71757592]
[1736262808232,0.55,3540.6,3538.5,0.02825021]
[1736262808437,2.82532,3539.5,3538.4,2.71757592]
[1736262808695,2.82607,3538.5,3536.8,2.82741]
[1736262808902,2.82607,3538.5,3536.7,1.5914]
[1736262808903,0.02711009,3538.4,3536.7,1.5914]
[1736262809056,0.57711009,3538.4,3536.6,2.82755]
[1736262809260,0.01961009,3538.4,3536.8,0.02827186]
[1736262809607,2.82475,3540.2,3537.5,5.49924988]
[1736262809740,1.6181,3540.5,3538.1,1.5914]
[1736262809947,2.82505,3539.8,3538.5,2.82597]
[1736262810281,2.82505,3539.8,3538.2,2.02825571]
[1736262810282,1.6181,3540.5,3538.6,2.0]
[1736262810484,2.82446,3540.5,3539.2,2.82547]
[1736262810691,1.6181,3541.2,3538.4,2.82608]
[1736262810692,2.82457,3540.4,3538.4,2.82608]
[1736262810900,0.25,3541.0,3538.1,1.5914]
[1736262811100,3.0,3541.1,3538.4,0.0075]
[1736262811101,5.49924988,3540.2,3538.4,0.0075]
[1736262811401,1.5733,3540.6,3537.7,0.0075]
[1736262811601,1.8336,3540.0,3537.3,0.0075]
[1736262811803,1.5911,3540.0,3538.5,0.0075]
[1736262812102,2.82535,3539.4,3538.5,0.0075]
[1736262812260,2.82493,3539.9,3537.8,0.0075]
[1736262812261,3.441582,3539.9,3537.8,0.0075]
[1736262812445,1.5911,3540.0,3538.5,0.0075]
[1736262812645,1.5911,3540.0,3539.1,0.0075]
[1736262812845,2.8243,3540.7,3539.3,0.0075]
[1736262813045,1.5362,3540.8,3538.9,0.0075]
[1736262813295,2.82515,3539.7,3539.0,0.0075]
[1736262813446,2.82473,3540.2,3539.2,0.0075]
[1736262813683,2.82473,3540.2,3539.1,0.02825126]
[1736262813684,1.5362,3540.8,3539.3,0.02825029]
[1736262813883,1.5362,3540.8,3539.1,0.03574909]
[1736262814087,1.5287,3540.8,3539.5,0.0075]
[1736262814498,2.82475,3540.2,3539.1,0.0075]
[1736262814698,1.5287,3540.8,3538.4,0.0075]
[1736262814899,2.8255,3539.2,3538.4,0.0075]
[1736262815229,2.82534,3539.4,3538.6,0.0075]
[1736262815429,3.55,3540.3,3537.9,1.6247]
[1736262815732,2.82528,3539.5,3538.1,0.0075]
[1736262815934,0.79467811,3541.2,3539.2,0.0075]
[1736262815935,0.55217811,3541.2,3539.2,0.0075]
[1736262816117,2.82495,3539.9,3538.9,0.0075]
[1736262816446,3.0,3541.2,3538.9,0.0075]
[1736262816735,3.2425,3541.5,3538.6,0.0075]
[1736262816902,3.0,3540.9,3538.4,0.0075]
[1736262817104,3.0,3540.9,3537.9,4.45121]
[1736262817105,2.82476,3540.2,3537.9,1.6322]
[1736262817317,3.0,3540.4,3537.9,1.6322]
[1736262817318,2.82511,3539.7,3537.9,1.6247]
[1736262817525,2.82537,3539.4,3537.9,1.6322]
[1736262817838,0.55,3538.3,3537.2,0.0075]
[1736262818039,1.5791,3539.1,3537.2,0.0075]
[1736262818341,1.5791,3539.1,3537.8,0.0075]
[1736262818500,1.5791,3539.1,3537.2,2.85533695]
[1736262818501,1.5061,3540.0,3538.5,0.0075]
[1736262818694,1.5061,3540.0,3538.2,0.0075]
[1736262818909,0.55,3538.9,3537.1,1.5323]
[1736262819109,0.55,3539.9,3537.1,1.5323]
[1736262819110,2.82548,3539.3,3538.1,0.0075]
[1736262819328,2.82515,3539.7,3538.1,0.0075]
[1736262819539,5.49924988,3539.9,3537.6,0.0075]
[1736262819540,3.37517,3539.6,3537.6,0.0075]
[1736262819839,2.82503,3539.8,3537.9,0.0075]
[1736262820048,0.25,3539.7,3537.1,1.5398]
[1736262820217,3.0,3539.5,3537.1,1.5398]
[1736262820421,3.0,3539.3,3537.3,0.0075]
[1736262820641,5.6524,3539.3,3537.1,1.5398]
[1736262820842,1.5455,3539.1,3537.1,1.5323]
[1736262821186,1.5455,3539.1,3536.5,0.02826871]
[1736262821187,5.49924988,3538.0,3536.5,0.0075]
[1736262821310,2.82767,3536.5,3535.2,0.0075]
[1736262821517,2.82759,3536.6,3535.4,1.14407493]
[1736262821756,2.82762,3536.6,3535.6,0.0075]
[1736262822054,2.82684,3537.6,3536.8,0.0075]
[1736262822252,5.6524,3538.0,3537.0,0.0075]
[1736262822408,5.6524,3538.0,3536.9,0.0075]
[1736262822613,5.6524,3538.0,3537.2,0.0075]
[1736262822813,5.6524,3538.0,3536.5,4.36023]
[1736262822814,5.6524,3538.0,3537.4,0.0075]
[1736262823350,5.6524,3538.0,3537.7,0.0075]
[1736262823552,5.6524,3538.0,3537.9,0.0075]
[1736262823911,5.6449,3538.0,3537.9,0.0075]
[1736262824111,5.6449,3538.0,3537.3,0.0075]
[1736262824317,5.6449,3538.0,3536.8,0.0075]
[1736262824717,2.827,3537.4,3536.8,0.0075]
[1736262824973,5.6449,3537.4,3537.0,0.0075]
[1736262825145,5.6449,3537.4,3536.5,1.5326]
[1736262825146,5.6449,3537.4,3537.2,0.0075]
[1736262825544,5.6374,3537.4,3537.2,0.0075]
[1736262825976,5.6374,3537.4,3537.3,7.40491]
[1736262826139,2.82517,3539.6,3539.1,0.0075]
[1736262826340,1.6442,3540.3,3538.7,0.0075]
[1736262826341,2.82469,3540.2,3538.7,0.0075]
[1736262826538,2.82492,3540.0,3538.7,0.0075]
[1736262826845,1.0926613,3540.5,3539.7,0.0075]
[1736262827159,3.9096413,3540.5,3539.8,0.0075]
[1736262827358,1.0851613,3540.5,3539.5,0.0075]
[1736262827562,1.0851613,3540.5,3539.1,0.0075]
[1736262827764,1.0851613,3540.5,3538.8,1.5305]
[1736262827765,1.5864,3541.0,3539.9,0.0075]
[1736262827976,1.74504,3541.0,3539.0,0.0075]
[1736262828273,2.82474,3540.2,3539.3,0.0075]
[1736262828478,2.82502,3539.8,3539.3,0.0075]
[1736262828721,1.5864,3541.0,3539.6,0.0075]
[1736262828830,1.5057,3541.6,3540.1,0.0075]
[1736262829039,2.82413,3541.0,3540.4,0.0075]
[1736262829352,2.82414,3540.9,3540.4,0.0075]
[1736262829556,2.82392,3541.2,3540.6,0.0075]
[1736262829746,2.82286,3542.5,3540.8,2.8317]
[1736262829953,1.63899195,3542.8,3541.4,0.0075]
[1736262830178,1.63899195,3542.8,3540.9,0.31140933]
[1736262830179,2.8154,3542.5,3541.9,0.0075]
[1736262830336,2.8154,3542.5,3541.3,0.0075]
[1736262830337,2.8154,3542.5,3541.7,0.0075]
[1736262830531,2.82271,3542.7,3542.1,0.0075]
[1736262830760,2.82265,3542.8,3542.4,0.0075]
[1736262830960,2.82265,3542.8,3541.7,1.5901]
[1736262830961,2.8223,3543.2,3542.3,0.0075]
[1736262831163,4.46089195,3543.8,3542.3,0.0075]
[1736262831364,2.82255,3542.9,3542.3,0.0075]
[1736262831787,2.82255,3542.9,3541.1,2.82396]
[1736262831788,3.0,3543.2,3541.9,0.015]
[1736262832091,2.81572,3542.1,3542.0,0.0075]
[1736262832381,2.82283,3542.6,3541.1,0.0075]
[1736262832382,3.37311,3542.2,3541.1,0.0075]
[1736262832606,2.82322,3542.1,3541.6,0.0075]
[1736262832806,2.82281,3542.6,3542.3,0.0075]
[1736262833004,2.82288,3542.5,3542.3,0.0075]
[1736262833206,0.01,3543.4,3541.7,0.0075]
[1736262833407,0.01,3543.4,3541.9,0.0075]
[1736262833408,2.8223,3543.2,3541.9,0.0075]
[1736262833739,0.27573,3543.2,3541.1,0.0075]
[1736262833880,2.82222,3543.3,3542.2,0.0075]
[1736262834094,2.82222,3543.3,3541.9,0.0075]
[1736262834296,2.82222,3543.3,3542.2,0.0075]
[1736262834297,2.82287,3542.5,3542.2,0.0075]
[1736262834488,0.02586509,3542.4,3541.2,0.0075]
[1736262834838,0.02586509,3542.4,3541.6,0.0075]
[1736262834839,1.6349,3542.4,3541.6,0.0075]
[1736262835108,0.02758245,3542.3,3541.9,0.0075]
[1736262835310,0.02758245,3542.3,3542.2,0.0075]
[1736262835607,1.6349,3543.2,3542.1,0.0075]
[1736262835794,2.8231,3542.2,3542.1,0.0075]
[1736262835981,2.82246,3543.0,3540.3,4.43274]
[1736262835982,1.6349,3543.2,3541.6,0.0075]
[1736262836321,0.56642848,3542.7,3540.9,0.0075]
[1736262836534,2.82355,3541.7,3541.3,0.0075]
[1736262836742,2.82302,3542.3,3540.3,0.0075]
[1736262836743,2.82453,3540.4,3540.3,0.0075]
[1736262837015,2.82543,3539.3,3539.2,0.0075]
[1736262837170,2.82518,3539.6,3539.0,0.0075]
[1736262837365,0.02629031,3539.3,3538.5,1.14407493]
[1736262837619,2.82587,3538.8,3538.3,0.0075]
[1736262837776,2.82587,3538.8,3538.1,1.5808]
[1736262837777,0.02629031,3539.2,3538.5,0.0075]
[1736262837978,2.82597,3538.6,3538.5,0.0075]
[1736262838187,2.82581,3538.9,3538.7,0.0075]
[1736262838369,7.02174988,3540.4,3538.3,0.0075]
[1736262838570,0.02629031,3538.8,3538.2,0.0075]
[1736262838771,2.82581,3538.8,3537.7,0.0075]
[1736262839028,1.6653,3539.0,3537.1,0.0075]
[1736262839029,0.55,3537.3,3537.1,0.0075]
[1736262839188,2.82709,3537.2,3537.1,0.0075]
[1736262839367,5.49924988,3538.6,3535.0,1.38857493]
[1736262839368,2.82685,3537.5,3537.4,0.0075]
[1736262839574,5.49924988,3538.6,3537.4,0.0075]
[1736262839827,2.82633,3538.2,3537.7,0.0075]
[1736262840130,1.6653,3539.0,3537.1,0.0075]
[1736262840330,2.82702,3537.3,3537.2,0.0075]
[1736262840616,2.82702,3537.3,3536.1,1.5817]
[1736262840617,2.82605,3538.5,3537.6,0.0075]
[1736262840907,2.82605,3538.6,3538.1,0.0075]
[1736262841109,8.97,3539.7,3538.8,0.0075]
[1736262841110,2.82563,3539.1,3538.8,0.0075]
[1736262841321,2.82563,3539.1,3539.0,0.0075]
[1736262841535,1.6552,3539.7,3537.5,4.46105]
[1736262841536,2.82582,3538.8,3537.5,4.46105]
[1736262841735,2.83267,3539.6,3537.5,1.6342]
[1736262841872,0.0075,3539.1,3537.5,1.6342]
[1736262842068,0.0075,3539.1,3535.8,0.5]
[1736262842069,2.82752,3536.7,3536.1,1.6342]
[1736262842276,2.82621,3538.3,3536.1,1.6342]
[1736262842277,3.55,3538.2,3536.1,1.6342]
[1736262842575,2.21196574,3538.3,3536.1,1.6342]
[1736262842576,5.65402,3537.3,3536.1,1.6342]
[1736262842770,0.5575,3537.3,3536.1,1.6342]
[1736262843028,2.82709,3537.2,3536.1,1.6342]
[1736262843194,5.73384988,3537.4,3536.1,1.6342]
[1736262843527,5.73384988,3537.4,3535.4,1.13657493]
[1736262843528,2.82837,3535.6,3535.4,1.13657493]
[1736262843685,2.82802,3536.1,3535.0,0.002]
[1736262843686,2.82877,3535.1,3535.0,0.002]
[1736262844076,2.82877,3535.1,3535.0,1e-05]
[1736262844483,3.38627,3535.1,3535.0,1e-05]
[1736262844691,2.83026,3533.3,3532.9,0.74657493]
[1736262844976,0.0075,3535.0,3532.9,0.74657493]
[1736262844977,0.5575,3534.4,3532.9,0.74657493]
[1736262845197,0.55,3535.0,3532.9,0.74657493]
[1736262845389,0.56535122,3535.7,3532.6,3.91124152]
[1736262845390,5.49924988,3535.7,3533.1,1.5236]
[1736262845589,2.82845,3535.5,3533.2,0.02829854]
[1736262845890,1.5401,3536.0,3533.2,0.02829854]
[1736262846229,2.82925,3534.5,3533.2,0.02829854]
[1736262846384,2.82821,3535.8,3533.1,1.5236]
[1736262846385,0.55,3535.0,3533.1,1.5236]
[1736262846585,1.5401,3536.0,3533.3,2.83021]
[1736262846586,2.82865,3535.3,3533.3,2.83021]
[1736262846838,7.08904988,3536.9,3534.0,3.0]
[1736262847034,2.8287,3535.2,3534.1,0.02828607]
[1736262847187,3.0,3535.9,3533.8,1.5075]
[1736262847393,0.0075,3534.9,3533.8,1.5075]
[1736262847618,0.0075,3534.9,3533.9,0.02829248]
[1736262847816,0.0075,3534.9,3533.8,1.5075]
[1736262848130,7.08904988,3536.9,3533.9,0.02828748]
[1736262848290,7.08904988,3536.9,3533.8,1.5075]
[1736262848291,2.8277,3536.5,3534.4,2.82931]
[1736262848491,2.82848,3535.5,3534.0,3.18316875]
[1736262848696,0.0075,3535.4,3533.8,1.5075]
[1736262849018,3.0,3536.7,3533.8,1.5075]
[1736262849019,2.82824,3535.8,3533.8,1.5075]
[1736262849328,2.82786,3536.3,3533.8,1.5075]
[1736262849329,2.82929,3534.5,3533.8,1.5075]
[1736262849648,2.82824,3535.8,3534.0,0.0075]
[1736262849791,2.82895,3534.9,3533.8,1.5]
[1736262849987,2.82789,3536.2,3533.9,0.02829496]
[1736262850190,10.49076465,3536.9,3534.0,0.0075]
[1736262850431,2.82806,3536.0,3534.7,0.0075]
[1736262850630,7.66341465,3536.9,3534.7,0.0075]
[1736262850631,2.82868,3535.3,3534.7,0.0075]
[1736262850856,5.82743,3536.8,3534.7,0.0075]
[1736262850987,2.8287,3535.2,3534.0,0.0075]
[1736262851191,7.08904988,3536.9,3533.8,1.5]
[1736262851192,2.82813,3535.9,3533.8,1.5]
[1736262851466,3.0,3535.7,3533.8,1.5]
[1736262851630,3.37821,3535.8,3532.4,2.0]
[1736262851631,0.0075,3533.3,3532.4,2.0]
[1736262851854,1.5945,3534.2,3531.2,2.0]
[1736262851989,2.83138,3531.9,3530.9,1.73320614]
[1736262852194,5.49924988,3533.2,3530.9,1.73320614]
[1736262852410,2.83137,3531.9,3530.9,3.37060614]
[1736262852652,2.83109,3532.3,3531.0,0.02831938]
[1736262852798,1.6619,3533.9,3531.0,0.02831938]
[1736262852990,0.16619,3533.8,3531.1,0.53239255]
[1736262853232,5.65834,3534.6,3532.5,1.6374]
[1736262853434,8.97,3535.4,3532.6,0.02830418]
[1736262853435,2.82872,3535.2,3532.6,0.02830418]
[1736262853750,2.82942,3534.3,3532.9,2.8305]
[1736262853893,1.6045,3535.4,3533.6,1.525]
[1736262854093,3.0,3535.2,3533.7,0.0075]
[1736262854294,2.83731,3533.9,3533.7,0.0075]
[1736262854495,2.82914,3534.7,3532.3,1.525]
[1736262854728,0.5575,3534.2,3532.3,1.5175]
[1736262855027,2.83078,3532.6,3532.3,1.5175]
[1736262855194,2.83002,3533.6,3532.3,1.5175]
[1736262855594,2.83041,3533.1,3532.3,1.5175]
[1736262855808,4.6045,3534.3,3532.3,1.5175]
[1736262855809,1.6045,3534.3,3532.4,0.02830751]
[1736262856038,2.82957,3534.1,3532.3,1.5175]
[1736262856205,2.8305,3533.0,3532.3,1.5175]
[1736262856532,0.0075,3533.4,3532.3,1.5175]
[1736262856756,0.0075,3532.4,3530.5,2.0]
[1736262856894,0.5575,3532.2,3529.3,2.0]
[1736262857095,1.6393,3532.8,3528.9,1.5]